fUSD/lending_fUSD_20251129
["ID","MTS","AMOUNT","RATE_DAILY","PERIOD"]
[395117097,1764453038442,-500.0,0.00015006,2]
[395117098,1764453038451,-500.0,0.00015006,2]
[395117099,1764453038460,-500.0,0.00015006,2]
[395117100,1764453038470,-500.0,0.00015006,2]
[395117101,1764453038479,-500.0,0.00015006,2]
[395117102,1764453038489,-500.0,0.00015006,2]
[395117103,1764453038499,-500.0,0.00015006,2]
[395117104,1764453038509,-500.0,0.00015006,2]
[395117105,1764453038519,-500.0,0.00015006,2]
[395117106,1764453038528,-500.0,0.00015006,2]
[395117107,1764453038537,-500.0,0.00015006,2]
[395117108,1764453038547,-500.0,0.00015006,2]
[395117109,1764453038557,-500.0,0.00015006,2]
[395117110,1764453038566,-500.0,0.00015006,2]
[395117111,1764453038575,-500.0,0.00015006,2]
[395117112,1764453038584,-500.0,0.00015006,2]
[395117113,1764453038593,-500.0,0.00015006,2]
[395117114,1764453038602,-500.0,0.00015006,2]
[395117115,1764453038611,-500.0,0.00015006,2]
[395117116,1764453038621,-500.0,0.00015006,2]
[395117117,1764453038630,-500.0,0.00015006,2]
[395117118,1764453038639,-500.0,0.00015006,2]
[395117119,1764453038649,-500.0,0.00015006,2]
[395117120,1764453038658,-521.20636719,0.00015006,2]
[395117121,1764453038667,-500.0,0.00015006,2]
[395117122,1764453038677,-500.0,0.00015006,2]
[395117123,1764453038686,-500.0,0.00015006,2]
[395117124,1764453038696,-144556.01511938,0.00015007,2]
[395117125,1764453038705,-1200.0,0.00015014,2]
[395117126,1764453038714,-300.0,0.00015015,2]
[395117127,1764453038723,-300.0,0.00015015,2]
[395117128,1764453038733,-300.0,0.00015015,2]
[395117129,1764453038742,-12314.74358862,0.00015016,2]
[395117130,1764453038751,-6832.17529795,0.00015016,2]
[395117131,1764453038761,-4582.6323,0.00015016,2]
[395117132,1764453038770,-2500.0,0.00015016,2]
[395117133,1764453038780,-150.99,0.00015025,2]
[395117134,1764453038790,-1700.7756,0.00015096,2]
[395117135,1764453038800,-151.0,0.00015098,2]
[395117136,1764453038810,-300.0,0.00015105,2]
[395117137,1764453038819,-856.78,0.00015106,2]
[395117138,1764453038829,-150.0,0.00015107,2]
[395117139,1764453038839,-500.0,0.00015107,2]
[395117140,1764453038848,-60873.47,0.00015107,2]
[395117141,1764453038858,-6690.39,0.00015107,2]
[395117142,1764453038868,-354.24049117,0.00015107,2]
[395117143,1764453038878,-200.0,0.00015107,2]
[395117144,1764453038888,-597.09424157,0.00015107,2]
[395117145,1764453038897,-151.0,0.00015107,2]
[395117146,1764453038907,-200.0,0.00015107,2]
[395117147,1764453038918,-188.15640171,0.00015107,2]
[395117148,1764453038927,-200.0,0.00015107,2]
[395117149,1764453038936,-500.0,0.00015115,2]
[395117150,1764453038946,-500.0,0.00015115,2]
[395117151,1764453038955,-366.4916,0.00015116,2]
[395117152,1764453038966,-450.0,0.00015216,2]
[395117153,1764453038976,-500.0,0.00015216,2]
[395117154,1764453038986,-500.0,0.00015216,2]
[395117155,1764453038996,-500.27300015,0.00015216,2]
[395117156,1764453039005,-12314.74358853,0.00015225,2]
[395117157,1764453039015,-6832.17529791,0.00015225,2]
[395117158,1764453039024,-166.66,0.00015228,2]
[395117159,1764453039035,-192.97090635,0.00015235,2]
[395117160,1764453039044,-150.0,0.00015244,2]
[395117161,1764453039052,-500.0,0.00015244,2]
[395117162,1764453039062,-182.0,0.00015246,2]
[395117163,1764453039071,-999.0,0.0001525,3]
[395117164,1764453039081,-518.09228248,0.00015252,2]
[395117165,1764453039090,-500.0,0.00015252,2]
[395117166,1764453039099,-150.0,0.00015288,2]
[395117167,1764453039108,-150.0,0.00015288,2]
[395117168,1764453039117,-150.0,0.00015288,2]
[395117169,1764453039126,-150.0,0.00015288,2]
[395117170,1764453039135,-150.0,0.00015288,2]
[395117171,1764453039144,-150.0,0.00015288,2]
[395117172,1764453039153,-150.0,0.00015288,2]
[395117173,1764453039162,-150.0,0.00015288,2]
[395117174,1764453039172,-150.0,0.00015288,2]
[395117175,1764453039182,-150.0,0.00015288,2]
[395117176,1764453039191,-6961.40195924,0.00015335,2]
[395117177,1764453039200,-302.17,0.00015362,2]
[395117178,1764453039209,-856.78,0.0001538,2]
[395117179,1764453039219,-250.44152871,0.00015381,2]
[395117180,1764453039227,-500.0,0.00015381,2]
[395117181,1764453039237,-500.0,0.00015389,2]
[395117182,1764453039246,-200.0,0.00015429,2]
[395117183,1764453039255,-12314.74358853,0.00015435,2]
[395117184,1764453039265,-6832.17529791,0.00015435,2]
[395117185,1764453039275,-150.0,0.00015458,2]
[395117186,1764453039285,-1852.42,0.00015472,2]
[395117187,1764453039294,-150.0,0.00015476,2]
[395117188,1764453039303,-150.0,0.000155,2]
[395117189,1764453039312,-500.0,0.00015518,2]
[395117190,1764453039322,-166.66,0.00015524,2]
[395117191,1764453039332,-500.0,0.00015526,2]
[395117192,1764453039341,-150.0,0.0001553,2]
[395117193,1764453039350,-150.0,0.00015571,2]
[395117194,1764453039359,-150.0,0.00015627,2]
[395117195,1764453039367,-150.0,0.00015627,2]
[395117196,1764453039377,-12314.74358853,0.00015644,2]
[395117197,1764453039387,-6832.17529791,0.00015644,2]
[395117198,1764453039396,-151.0,0.00015646,2]
[395117199,1764453039406,-856.78,0.00015654,2]
[395117200,1764453039416,-500.0,0.00015655,2]
[395117201,1764453039426,-202.58152099,0.00015655,2]
[395117202,1764453039436,-200.0,0.00015655,2]
[395117203,1764453039447,-500.0,0.00015663,2]
[395117204,1764453039457,-150.0,0.00015665,2]
[395117205,1764453039470,-304.91,0.00015709,2]
[395117206,1764453039480,-150.0,0.00015712,2]
[395117207,1764453039491,-150.0,0.00015773,2]
[395117209,1764453039501,-500.0,0.00015792,2]
[395117210,1764453039511,-150.0,0.00015797,2]
[395117211,1764453039521,-500.0,0.000158,2]
[395117212,1764453039533,-309.07197295,0.0001582,2]
[395117213,1764453039543,-12314.74358853,0.00015853,2]
[395117214,1764453039553,-6832.17529791,0.00015853,2]
[395117215,1764453039564,-150.0,0.00015854,2]
[395117216,1764453039576,-150.0,0.00015854,2]
[395117217,1764453039588,-150.0,0.00015854,2]
[395117218,1764453039598,-150.0,0.000159,2]
[395117219,1764453039608,-776.94054744,0.000159,2]
[395117220,1764453039618,-776.94054742,0.000159,2]
[395117221,1764453039628,-776.94054742,0.000159,2]
[395117222,1764453039637,-776.94054742,0.000159,2]
[395117223,1764453039647,-776.94054742,0.000159,2]
[395117224,1764453039657,-776.94054742,0.000159,2]
[395117225,1764453039666,-150.0,0.00015925,2]
[395117226,1764453039676,-856.78,0.00015928,2]
[395117227,1764453039686,-500.0,0.00015929,2]
[395117228,1764453039696,-500.0,0.00015937,2]
[395117229,1764453039705,-150.0,0.00015967,2]
[395117230,1764453039715,-150.0,0.00015967,2]
[395117231,1764453039724,-504.164248,0.00015973,2]
[395117232,1764453039733,-545.6682471,0.00015973,2]
[395117233,1764453039742,-500.0,0.00015973,2]
[395117234,1764453039751,-500.0,0.00015973,2]
[395117235,1764453039761,-500.0,0.00015973,2]
[395117236,1764453039771,-500.0,0.00015973,2]
[395117237,1764453039781,-176.16235425,0.00015973,2]
[395117238,1764453039791,-500.0,0.00015973,2]
[395117239,1764453039801,-500.71814226,0.00015973,2]
[395117240,1764453039810,-500.0,0.00015973,2]
[395117241,1764453039820,-500.0,0.00015973,2]
[395117242,1764453039832,-500.0,0.00015973,2]
[395117243,1764453039842,-502.60400669,0.00015973,2]
[395117244,1764453039851,-500.0,0.00015973,2]
[395117245,1764453039862,-500.0,0.00015973,2]
[395117246,1764453039871,-500.0,0.00015973,2]
[395117247,1764453039881,-500.0,0.00015973,2]
[395117248,1764453039890,-500.0,0.00015973,2]
[395117249,1764453039902,-500.0,0.00015973,2]
[395117250,1764453039911,-500.0,0.00015973,2]
[395117251,1764453039921,-500.0,0.00015973,2]
[395117253,1764453039930,-315.71495663,0.00015973,2]
[395117254,1764453039940,-500.33790784,0.00015973,2]
[395117255,1764453039950,-500.0,0.00015973,2]
[395117256,1764453039960,-622.41255856,0.00015973,2]
[395117257,1764453039969,-215.65703164,0.00015973,2]
[395117258,1764453039978,-500.0,0.00015973,2]
[395117259,1764453039987,-150.0,0.00016016,2]
[395117260,1764453039997,-150.0,0.00016043,2]
[395117261,1764453040006,-282.60723779,0.00016053,2]
[395117262,1764453040015,-12314.74358853,0.00016063,2]
[395117263,1764453040024,-6832.17529791,0.00016063,2]
[395117264,1764453040033,-500.0,0.00016066,2]
[395117265,1764453040042,-500.0,0.00016074,2]
[395117266,1764453040052,-1040.24545121,0.000161,5]
[395117267,1764453040062,-177.39,0.00016101,2]
[395117268,1764453040072,-150.0,0.00016137,2]
[395117269,1764453040082,-150.0,0.00016137,2]
[395117270,1764453040091,-150.0,0.00016137,2]
[395117271,1764453040100,-150.0,0.00016137,2]
[395117272,1764453040112,-151.0,0.00016194,2]
[395117273,1764453040124,-856.78,0.00016202,2]
[395117274,1764453040134,-500.0,0.00016203,2]
[395117275,1764453040142,-200.0,0.00016203,2]
[395117276,1764453040151,-500.0,0.00016211,2]
[395117277,1764453040161,-510.0,0.00016223,2]
[395117278,1764453040170,-150.0,0.00016231,2]
[395117279,1764453040179,-150.0,0.00016258,2]
[395117280,1764453040189,-12314.74358853,0.00016272,2]
[395117281,1764453040198,-6832.17529791,0.00016272,2]
[395117282,1764453040207,-150.0,0.00016307,2]
[395117283,1764453040215,-150.0,0.00016307,2]
[395117284,1764453040224,-500.0,0.0001634,2]
[395117285,1764453040233,-500.0,0.00016348,2]
[395117286,1764453040243,-150.0,0.00016349,2]
[395117287,1764453040252,-1600.0,0.0001637,2]
[395117288,1764453040261,-150.0,0.0001642,2]
[395117289,1764453040275,-150.0,0.0001642,2]
[395117290,1764453040284,-150.0,0.0001642,2]
[395117291,1764453040293,-150.32875877,0.00016426,2]
[395117292,1764453040303,-195.0,0.00016426,2]
[395117293,1764453040314,-193.0,0.00016426,2]
[395117294,1764453040323,-250.0,0.00016426,2]
[395117295,1764453040333,-300.0,0.00016426,2]
[395117296,1764453040341,-420.0,0.00016433,2]
[395117297,1764453040352,-150.0,0.00016438,2]
[395117298,1764453040361,-150.0,0.00016438,2]
[395117299,1764453040370,-476.6,0.00016438,2]
[395117300,1764453040379,-500.0,0.00016438,2]
[395117301,1764453040388,-500.0,0.00016438,2]
[395117302,1764453040397,-559.75340996,0.00016438,2]
[395117303,1764453040407,-500.0,0.00016438,2]
[395117304,1764453040416,-500.0,0.00016438,2]
[395117305,1764453040425,-500.0,0.00016438,2]
[395117306,1764453040435,-500.0,0.00016438,2]
[395117307,1764453040444,-500.0,0.00016438,2]
[395117308,1764453040454,-500.0,0.00016438,2]
[395117309,1764453040790,-500.0,0.00016438,2]
[395117310,1764453040809,-500.0,0.00016438,2]
[395117311,1764453040819,-500.0,0.00016438,2]
[395117312,1764453040828,-800.0,0.00016438,2]
[395117313,1764453040838,-856.78,0.00016476,2]
[395117314,1764453040847,-150.0,0.00016477,2]
[395117315,1764453040857,-500.0,0.00016477,2]
[395117316,1764453040866,-12314.74358853,0.00016481,2]
[395117317,1764453040876,-6832.17529791,0.00016481,2]
[395117318,1764453040886,-500.0,0.00016485,2]
[395117319,1764453040895,-150.0,0.00016501,2]
[395117320,1764453040904,-1680.0,0.00016515,2]
[395117321,1764453040914,-1000.0,0.00016521,2]
[395117322,1764453040924,-1000.0,0.00016521,2]
[395117323,1764453040933,-500.79206791,0.00016521,2]
[395117324,1764453040942,-415.8000054,0.00016521,2]
[395117325,1764453040951,-1000.0,0.00016521,2]
[395117326,1764453040960,-500.0,0.00016521,2]
[395117327,1764453040969,-1000.0,0.00016521,2]
[395117328,1764453040978,-1000.0,0.00016521,2]
[395117329,1764453040987,-1000.0,0.00016521,2]
[395117330,1764453040996,-1000.0,0.00016521,2]
[395117331,1764453041006,-494.11980425,0.00016521,2]
[395117332,1764453041015,-1000.0,0.00016521,2]
[395117333,1764453041024,-1000.0,0.00016521,2]
[395117334,1764453041033,-500.0,0.00016521,2]
[395117335,1764453041042,-1000.0,0.00016521,2]
[395117336,1764453041052,-500.0,0.00016521,2]
[395117337,1764453041061,-360.05947122,0.00016521,2]
[395117338,1764453041070,-427.45964135,0.00016526,2]
[395117339,1764453041079,-150.0,0.00016562,2]
[395117340,1764453041089,-150.0,0.00016575,2]
[395117341,1764453041098,-150.0,0.00016575,2]
[395117342,1764453041107,-150.0,0.00016609,2]
[395117343,1764453041116,-500.0,0.00016614,2]
[395117344,1764453041126,-500.0,0.00016622,2]
[395117345,1764453041134,-150.0,0.00016647,2]
[395117346,1764453041144,-150.0,0.00016647,2]
[395117347,1764453041153,-12314.74358853,0.00016691,2]
[395117348,1764453041163,-6832.17529791,0.00016691,2]
[395117349,1764453041172,-150.0,0.00016703,2]
[395117350,1764453041181,-178.73243855,0.00016712,2]
[395117351,1764453041191,-150.0,0.00016712,2]
[395117352,1764453041200,-214.95480447,0.00016714,2]
[395117353,1764453041209,-236.25863551,0.00016742,2]
[395117354,1764453041219,-150.0,0.00016744,2]
[395117355,1764453041228,-856.78,0.0001675,2]
[395117356,1764453041237,-500.0,0.00016751,2]
[395117357,1764453041252,-500.0,0.00016759,2]
[395117358,1764453041262,-150.0,0.00016774,2]
[395117359,1764453041275,-150.0,0.00016798,2]
[395117360,1764453041285,-150.0,0.00016816,2]
[395117361,1764453041295,-150.0,0.00016849,2]
[395117362,1764453041305,-500.0,0.00016888,2]
[395117363,1764453041314,-500.0,0.00016896,2]
[395117364,1764453041324,-794.17025836,0.000169,2]
[395117365,1764453041333,-10000.0,0.000169,2]
[395117366,1764453041343,-210.46983869,0.000169,2]
[395117367,1764453041352,-12314.74358853,0.000169,2]
[395117368,1764453041361,-944.63482418,0.000169,2]
[395117369,1764453041374,-191.37909284,0.000169,2]
[395117370,1764453041384,-183.5991517,0.000169,2]
[395117371,1764453041393,-6832.17529791,0.000169,2]
[395117372,1764453041402,-630.51395534,0.000169,2]
[395117373,1764453041411,-684.63652238,0.000169,2]
[395117374,1764453041420,-651.59927965,0.000169,2]
[395117375,1764453041429,-1226.0,0.00016959,2]
[395117376,1764453041439,-161.98179923,0.00016973,2]
[395117377,1764453041449,-501.68270719,0.00016973,2]
[395117378,1764453041458,-366.12430531,0.00016973,2]
[395117379,1764453041467,-507.05784267,0.00016973,2]
[395117380,1764453041477,-500.0,0.00016973,2]
[395117381,1764453041486,-500.0,0.00016973,2]
[395117382,1764453041495,-176.33851761,0.00016973,2]
[395117383,1764453041504,-500.0,0.00016973,2]
[395117384,1764453041514,-500.0,0.00016973,2]
[395117385,1764453041524,-500.0,0.00016973,2]
[395117386,1764453041534,-500.0,0.00016973,2]
[395117387,1764453041543,-500.0,0.00016973,2]
[395117388,1764453041552,-500.0,0.00016973,2]
[395117389,1764453041560,-500.0,0.00016973,2]
[395117390,1764453041570,-500.0,0.00016973,2]
[395117391,1764453041578,-500.0,0.00016973,2]
[395117392,1764453041587,-500.0,0.00016973,2]
[395117393,1764453041597,-503.08797881,0.00016973,2]
[395117394,1764453041607,-500.0,0.00016973,2]
[395117395,1764453041617,-500.0,0.00016973,2]
[395117396,1764453041628,-415.30385931,0.00016973,2]
[395117397,1764453041637,-500.0,0.00016973,2]
[395117398,1764453041646,-500.0,0.00016973,2]
[395117399,1764453041656,-500.0,0.00016973,2]
[395117400,1764453041665,-500.0,0.00016973,2]
[395117401,1764453041674,-500.0,0.00016973,2]
[395117402,1764453041684,-500.0,0.00016973,2]
[395117403,1764453041694,-167.29393494,0.00016973,2]
[395117404,1764453041703,-500.0,0.00016973,2]
[395117405,1764453041712,-500.0,0.00016973,2]
[395117406,1764453041722,-500.0,0.00016973,2]
[395117407,1764453041732,-215.63945955,0.00016973,2]
[395117408,1764453041742,-500.0,0.00016973,2]
[395117409,1764453041751,-500.0,0.00016973,2]
[395117410,1764453041761,-500.0,0.00016973,2]
[395117411,1764453041770,-500.0,0.00016973,2]
[395117412,1764453041779,-500.0,0.00016973,2]
[395117413,1764453041789,-186.88026511,0.00016973,2]
[395117414,1764453041798,-500.0,0.00016973,2]
[395117415,1764453041807,-500.0,0.00016973,2]
[395117416,1764453041817,-500.0,0.00016973,2]
[395117417,1764453041826,-500.0,0.00016973,2]
[395117418,1764453041835,-172.25490603,0.00016973,2]
[395117419,1764453041844,-281.67573932,0.00016973,2]
[395117420,1764453041853,-500.0,0.00016983,2]
[395117421,1764453041862,-200.0,0.00016986,2]
[395117422,1764453041871,-290.89220526,0.00016986,2]
[395117423,1764453041880,-294.18459324,0.00016986,2]
[395117424,1764453041889,-150.0,0.00016986,2]
[395117425,1764453041898,-159.50313578,0.00016986,2]
[395117426,1764453041907,-159.34174515,0.00016986,2]
[395117427,1764453041916,-150.0,0.00016986,2]
[395117428,1764453041925,-150.0,0.00016986,2]
[395117429,1764453041934,-263.26519719,0.00016986,2]
[395117430,1764453041943,-150.0,0.00016986,2]
[395117431,1764453041953,-1040.24545121,0.00016999,5]
[395117432,1764453041964,-1040.24545121,0.00016999,5]
[395117433,1764453041973,-1040.24545122,0.00016999,5]
[395117434,1764453041982,-1040.24545121,0.00016999,5]
[395117435,1764453041992,-1040.24545121,0.00016999,5]
[395117436,1764453042001,-332.62709138,0.00016999,2]
[395117437,1764453042011,-500.0,0.00016999,2]
[395117438,1764453042019,-500.0,0.00016999,2]
[395117439,1764453042029,-300.0,0.00016999,2]
[395117440,1764453042038,-510.74534266,0.00016999,2]
[395117441,1764453042047,-500.0,0.00016999,2]
[395117442,1764453042056,-591.31867425,0.00016999,2]
[395117443,1764453042065,-500.0,0.00016999,2]
[395117444,1764453042074,-630.9506587,0.00016999,2]
[395117445,1764453042085,-500.0,0.00016999,2]
[395117446,1764453042094,-416.08725444,0.00016999,2]
[395117447,1764453042104,-300.0,0.00016999,2]
[395117448,1764453042114,-3987568.78804534,0.00017,2]
[395117449,1764453042135,-423.82310137,0.00017,2]
[395117450,1764453042145,-2215.85938312,0.00017,2]
[395117451,1764453042157,-1441.13579385,0.00017,2]
[395117452,1764453042167,-2298.27441512,0.00017,2]
[395117453,1764453042387,-163.86,0.0001644,2]
[395117454,1764453042397,-687.72155582,0.00017,2]
[395117455,1764453042408,-1367.90167766,0.00017,2]
[395117464,1764453045498,-150.0,0.00015107,2]
[395117465,1764453045507,-150.0,0.00015107,2]
[395117466,1764453045517,-150.0,0.00015244,2]
[395117467,1764453045526,-137.90238695,0.00015381,2]
[395117468,1764453045721,-12.09761305,0.00015381,2]
[395117469,1764453045731,-150.0,0.00015518,2]
[395117470,1764453045741,-343.55677068,0.00016973,2]
[395117471,1764453045750,-6447.34655563,0.00017,2]
[395117472,1764453045761,-131508.73126761,0.00017,2]
[395117474,1764453045781,-1058.3,0.00017,2]
[395117491,1764453135480,500.0,0.00014597,2]
[395117548,1764453722760,10.0,0.000267,120]
[395117550,1764453772323,199.17,0.00025,120]
[395117579,1764454231621,-300.0,0.00014906,2]
[395117581,1764454231631,-220.22306853,0.00014906,2]
[395117594,1764454231788,-979.77693147,0.00014906,2]
[395117595,1764454231798,-195.0,0.00014907,2]
[395117596,1764454231808,-5106.90984354,0.00014907,2]
[395117597,1764454231824,-781.96064254,0.00014907,2]
[395117599,1764454237854,-579.71974103,0.00014907,2]
[395117600,1764454237865,-6619.79384427,0.00014907,2]
[395117601,1764454237912,-789.55177033,0.00014907,2]
[395117602,1764454237969,-508.55729508,0.00014907,2]
[395117603,1764454238029,-2604.29336321,0.00014907,2]
[395117604,1764454238038,-2500.0,0.00014907,2]
[395117605,1764454238048,-195.0,0.00014965,2]
[395117606,1764454238057,-172.37768998,0.00014998,2]
[395117612,1764454240076,-27.62231002,0.00014998,2]
[395117613,1764454240087,-300.0,0.00015005,2]
[395117614,1764454240097,-275.69874424,0.00015006,2]
[395117615,1764454240106,-500.0,0.00015006,2]
[395117616,1764454240116,-610.89997835,0.00015006,2]
[395117617,1764454240126,-500.0,0.00015006,2]
[395117618,1764454240135,-500.0,0.00015006,2]
[395117619,1764454240145,-500.0,0.00015006,2]
[395117620,1764454240155,-500.0,0.00015006,2]
[395117621,1764454240166,-452.12063672,0.00015006,2]
[395117622,1764454240175,-1000.0,0.00015016,2]
[395117623,1764454240185,-2311.02106335,0.00015171,2]
[395117637,1764454245851,-162.9910991,0.00014807,2]
[395117638,1764454245861,-137.20893665,0.00015171,2]
[395117639,1764454245871,-198.54903748,0.00015223,2]
[395117640,1764454245910,-400.0,0.00015223,2]
[395117641,1764454246012,-1534.75669518,0.00015223,2]
[395117690,1764454592052,203.53,0.00014,2]
[395117719,1764454732114,736.06,0.00013699,2]
[395117732,1764454899579,-157.53759931,0.00014609,2]
[395117733,1764454904570,-286.48255414,0.00014609,2]
[395117734,1764454904606,-3135.22284655,0.00014609,2]
[395117735,1764454904633,-258.482,0.00014609,2]
[395117751,1764455085907,156.61,0.00019178,30]
[395117788,1764455251928,999.0,0.00014562,3]
[395117958,1764455431904,-162.9910991,0.00014706,2]
[395117959,1764455431914,-256.45990092,0.00014805,2]
[395117960,1764455431925,-943.54009908,0.00014805,2]
[395117961,1764455431934,-1200.0,0.00014805,2]
[395117962,1764455431947,-300.0,0.00014806,2]
[395117963,1764455431958,-300.0,0.00014806,2]
[395117964,1764455431968,-150.0,0.00014806,2]
[395117965,1764455431978,-449.79474907,0.00014807,2]
[395117966,1764455431987,-529.6394,0.00014807,2]
[395117967,1764455431997,-1000.0,0.00014807,2]
[395117968,1764455432006,-271494.4767,0.00014807,2]
[395117969,1764455432016,-4638.861,0.00014807,2]
[395117970,1764455432025,-2500.0,0.00014807,2]
[395117971,1764455432034,-222.4738,0.00014898,2]
[395117972,1764455432044,-151.0,0.00014898,2]
[395117973,1764455432053,-151.0,0.00014898,2]
[395117974,1764455432063,-151.0,0.00014898,2]
[395117975,1764455432072,-151.0,0.00014898,2]
[395117976,1764455432082,-151.0,0.00014898,2]
[395117977,1764455432092,-151.0,0.00014898,2]
[395117978,1764455432101,-151.0,0.00014898,2]
[395117979,1764455432112,-151.0,0.00014898,2]
[395117980,1764455432122,-151.0,0.00014898,2]
[395117981,1764455432133,-255.23714218,0.00014898,2]
[395117982,1764455432142,-500.0,0.00014903,2]
[395117983,1764455432151,-500.0,0.00014903,2]
[395117985,1764455432160,-500.0,0.00014903,2]
[395117986,1764455432169,-500.0,0.00014903,2]
[395117987,1764455432180,-500.0,0.00014903,2]
[395117988,1764455432189,-500.0,0.00014903,2]
[395117989,1764455432200,-500.0,0.00014903,2]
[395117990,1764455432209,-500.0,0.00014903,2]
[395117992,1764455432219,-500.0,0.00014903,2]
[395117993,1764455432228,-500.0,0.00014903,2]
[395117994,1764455432236,-500.0,0.00014903,2]
[395117995,1764455432246,-500.0,0.00014903,2]
[395117996,1764455432256,-500.0,0.00014903,2]
[395117997,1764455432265,-500.0,0.00014903,2]
[395117998,1764455432274,-500.0,0.00014903,2]
[395117999,1764455432283,-500.0,0.00014903,2]
[395118000,1764455432293,-500.0,0.00014903,2]
[395118001,1764455432304,-500.0,0.00014903,2]
[395118002,1764455432313,-500.0,0.00014903,2]
[395118003,1764455432323,-500.0,0.00014903,2]
[395118004,1764455432332,-416.06190618,0.00014903,2]
[395118005,1764455432341,-500.0,0.00014903,2]
[395118006,1764455432351,-500.0,0.00014903,2]
[395118007,1764455432360,-500.0,0.00014903,2]
[395118008,1764455432369,-500.0,0.00014903,2]
[395118009,1764455432379,-214.93911566,0.00014903,2]
[395118010,1764455432391,-285.06088434,0.00014903,2]
[395118011,1764455432400,-500.0,0.00014903,2]
[395118012,1764455432410,-500.0,0.00014903,2]
[395118013,1764455432419,-500.0,0.00014903,2]
[395118014,1764455432428,-500.0,0.00014903,2]
[395118015,1764455432437,-500.0,0.00014903,2]
[395118016,1764455432447,-500.0,0.00014903,2]
[395118017,1764455432456,-536.53829949,0.00014903,2]
[395118018,1764455432466,-500.0,0.00014903,2]
[395118019,1764455432475,-130.48994669,0.00014903,2]
[395118020,1764455432499,-369.51005331,0.00014903,2]
[395118021,1764455432508,-347.53449969,0.00014903,2]
[395118022,1764455432524,-152.46550031,0.00014903,2]
[395118023,1764455432534,-151.823645,0.00014903,2]
[395118024,1764455432545,-348.176355,0.00014903,2]
[395118025,1764455432554,-500.0,0.00014903,2]
[395118026,1764455432564,-402.20234514,0.00014903,2]
[395118032,1764455438134,-97.79765486,0.00014903,2]
[395118033,1764455438147,-500.0,0.00014903,2]
[395118034,1764455438160,-500.0,0.00014903,2]
[395118035,1764455438173,-500.0,0.00014903,2]
[395118036,1764455438187,-187.29738875,0.00014903,2]
[395118037,1764455438203,-312.70261125,0.00014903,2]
[395118038,1764455438217,-500.0,0.00014903,2]
[395118039,1764455438231,-500.0,0.00014903,2]
[395118040,1764455438244,-500.0,0.00014903,2]
[395118041,1764455438258,-170.74226421,0.00014903,2]
[395118042,1764455438271,-500.0,0.00014903,2]
[395118043,1764455438284,-500.0,0.00014903,2]
[395118044,1764455438297,-500.0,0.00014903,2]
[395118045,1764455438309,-500.0,0.00014903,2]
[395118046,1764455438322,-500.0,0.00014903,2]
[395118047,1764455438335,-500.0,0.00014903,2]
[395118048,1764455438348,-500.0,0.00014903,2]
[395118049,1764455438360,-500.0,0.00014903,2]
[395118050,1764455438373,-500.0,0.00014903,2]
[395118051,1764455438385,-500.0,0.00014903,2]
[395118053,1764455438397,-500.0,0.00014903,2]
[395118054,1764455438410,-500.0,0.00014903,2]
[395118057,1764455438423,-500.0,0.00014903,2]
[395118058,1764455438435,-500.0,0.00014903,2]